[Event "47th GRE-chT 2019"]
[Site "Patra"]
[Date "2019.07.02"]
[Round "1.12"]
[White "Mastrovasilis, Athanasios"]
[Black "Szabo, Gergely-Andras-Gyula"]
[Result "1/2-1/2"]
[ECO "E54"]
[WhiteElo "2518"]
[BlackElo "2535"]
[Annotator "ChessBase"]
[PlyCount "43"]
[EventDate "2019.07.02"]
[EventCountry "GRE"]
[SourceTitle "playchess.com"]
[Source "ChessBase"]
[SourceQuality "1"]
[TimeControl "5400+30"]

1. d4 {[%emt 0:00:00]} Nf6 {[%emt 0:01:36]} 2. Nf3 {[%emt 0:00:32]} e6 {[%emt 0:01:12]} 3. c4 {[%emt 0:00:57]} c5 {[%emt 0:04:20]} 4. e3 {[%emt 0:00:55]} cxd4 {[%emt 0:00:11]} 5. exd4 {[%emt 0:00:13]} d5 {[%emt 0:00:59]} 6. Nc3 {[%emt 0:00:50]} Bb4 {[%emt 0:00:56]} 7. Bd3 {[%emt 0:02:04]} dxc4 {[%emt 0:01:29]} 8. Bxc4 {[%emt 0:00:07]} O-O {[%emt 0:00:17]} 9. O-O {[%emt 0:00:06]} b6 {[%emt 0:06:26]} 10. Bg5 {[%emt 0:03:38]} Bb7 {[%emt 0:09:21]} 11. Ne5 {[%emt 0:06:19]} Nbd7 {[%emt 0:02:19]} 12. Nxd7 {[%emt 0:00:43]} Qxd7 {[%emt 0:00:10]} 13. Bxf6 {[%emt 0:00:05]} gxf6 {[%emt 0:02:43]} 14. d5 {[%emt 0:01:56]} Bxc3 {[%emt 0:02:37]} 15. bxc3 {[%emt 0:02:27]} Bxd5 {[%emt 0:00:32]} 16. Qg4+ {[%emt 0:00:05]} Kh8 {[%emt 0:00:24]} 17. Qh4 {[%emt 0:01:46]} Bxc4 {[%emt 0:01:46]} 18. Qxf6+ {[%emt 0:00:11]} Kg8 {[%emt 0:00:16]} 19. Qg5+ {[%emt 0:00:03]} Kh8 {[%emt 0:00:04]} 20. Qf6+ {[%emt 0:00:04]} Kg8 {[%emt 0:00:24]} 21. Qg5+ {[%emt 0:00:04]} Kh8 {[%emt 0:00:09]} 22. Qf6+ {[%emt 0:01:01]} 1/2-1/2

[Event "47th GRE-chT 2019"]
[Site "Patra"]
[Date "2019.07.02"]
[Round "1.12"]
[White "Roinos, Ilias"]
[Black "Georgiou, Kostantinos"]
[Result "0-1"]
[ECO "C05"]
[WhiteElo "2210"]
[BlackElo "2191"]
[Annotator "ChessBase"]
[PlyCount "88"]
[EventDate "2019.07.02"]
[EventCountry "GRE"]
[SourceTitle "playchess.com"]
[Source "ChessBase"]
[SourceQuality "1"]
[TimeControl "5400+30"]

1. e4 {[%emt 0:00:00]} e6 {[%emt 0:00:32]} 2. d4 {[%emt 0:00:13]} d5 {[%emt 0:00:04]} 3. Nd2 {[%emt 0:00:06]} Nf6 {[%emt 0:00:13]} 4. e5 {[%emt 0:00:11]} Nfd7 {[%emt 0:00:03]} 5. Ngf3 {[%emt 0:00:16]} c5 {[%emt 0:00:09]} 6. c3 {[%emt 0:00:09]} Nc6 {[%emt 0:00:06]} 7. Bd3 {[%emt 0:01:13]} g6 {[%emt 0:00:06]} 8. a3 {[%emt 0:07:21]} a5 {[%emt 0:05:26]} 9. Nf1 {[%emt 0:09:08]} Bg7 {[%emt 0:03:39]} 10. h4 {[%emt 0:01:18]} h6 {[%emt 0:06:58]} 11. Be3 {[%emt 0:05:00]} b6 {[%emt 0:04:18]} 12. Qe2 {[%emt 0:12:39]} Bb7 {[%emt 0:07:22]} 13. b3 {[%emt 0:06:27]} Qc8 {[%emt 0:04:20]} 14. Ng3 {[%emt 0:17:19]} cxd4 {[%emt 0:07:50]} 15. cxd4 {[%emt 0:02:50]} Ncxe5 {[%emt 0:02:45]} 16. Rc1 {[%emt 0:00:45]} Nxd3+ {[%emt 0:01:34]} 17. Qxd3 {[%emt 0:00:07]} Qd8 {[%emt 0:01:30]} 18. Qd2 {[%emt 0:00:55]} Ba6 {[%emt 0:03:46]} 19. Ne2 {[%emt 0:01:35]} Nf6 {[%emt 0:04:24]} 20. O-O {[%emt 0:02:20]} Ne4 {[%emt 0:02:48]} 21. Qb2 {[%emt 0:00:13]} g5 {[%emt 0:07:04]} 22. Ne5 {[%emt 0:09:42]} O-O {[%emt 0:03:25]} 23. hxg5 {[%emt 0:03:18]} hxg5 {[%emt 0:00:38]} 24. Rfd1 {[%emt 0:00:11]} f6 {[%emt 0:06:08]} 25. Nd3 {[%emt 0:00:56]} Qd7 {[%emt 0:02:48]} 26. f3 {[%emt 0:02:46]} Nd6 {[%emt 0:00:53]} 27. Ng3 {[%emt 0:01:28]} Rfc8 {[%emt 0:03:44]} 28. Rxc8+ {[%emt 0:00:14]} Rxc8 {[%emt 0:00:22]} 29. f4 {[%emt 0:00:15]} Ne4 {[%emt 0:05:16]} 30. Nxe4 {[%emt 0:00:58]} dxe4 {[%emt 0:00:04]} 31. Nf2 {[%emt 0:00:10]} gxf4 {[%emt 0:01:24]} 32. Bxf4 {[%emt 0:00:12]} f5 {[%emt 0:00:36]} 33. Qd2 {[%emt 0:02:24]} a4 {[%emt 0:06:47]} 34. Qe3 {[%emt 0:03:39]} Bd3 {[%emt 0:01:47]} 35. Be5 {[%emt 0:03:26]} Bc2 {[%emt 0:01:26]} 36. Re1 {[%emt 0:07:28]} axb3 {[%emt 0:02:32]} 37. Qg5 {[%emt 0:00:05]} b2 {[%emt 0:01:12]} 38. Nh3 {[%emt 0:00:02]} Kf8 {[%emt 0:02:50]} 39. Nf4 {[%emt 0:00:26]} Bxe5 {[%emt 0:00:32]} 40. dxe5 {[%emt 0:00:00]} Qf7 {[%emt 0:00:00]} 41. Qh6+ {[%emt 0:00:00]} Ke7 {[%emt 0:00:00]} 42. Nd5+ {[%emt 0:00:00]} exd5 {[%emt 0:00:00]} 43. Qd6+ {[%emt 0:00:00]} Ke8 {[%emt 0:00:00]} 44. e6 {[%emt 0:00:00]} Qc7 {[%emt 0:00:00]} 0-1

[Event "47th GRE-chT 2019"]
[Site "Patra"]
[Date "2019.07.02"]
[Round "1.13"]
[White "Beliotis, Georgios"]
[Black "Malikentzos, Sotirios"]
[Result "1/2-1/2"]
[ECO "B12"]
[WhiteElo "2204"]
[BlackElo "2428"]
[Annotator "NA"]
[PlyCount "91"]
[EventDate "2019.07.02"]
[EventCountry "GRE"]
[SourceTitle "playchess.com"]
[Source "ChessBase"]
[SourceQuality "1"]
[TimeControl "5400+30"]

1. e4 {[%emt 0:00:00]} c6 {[%emt 0:00:44]} 2. d4 {[%emt 0:00:35]} d5 {[%emt 0:00:21]} 3. e5 {[%emt 0:00:41]} Bf5 {[%emt 0:00:23]} 4. h4 {[%emt 0:00:34]} c5 {[%emt 0:00:09]} 5. g4 {[%emt 0:07:09]} Bd7 {[%emt 0:00:05]} 6. c3 {[%emt 0:06:52]} Nc6 {[%emt 0:01:56]} 7. Bh3 {[%emt 0:05:51]} e6 {[%emt 0:07:32]} 8. h5 {[%emt 0:05:56]} f6 {[%emt 0:08:28]} 9. Nf3 {[%emt 0:15:13]} cxd4 {[%emt 0:04:22]} 10. cxd4 {[%emt 0:01:27]} fxe5 {[%emt 0:00:23]} 11. dxe5 {[%emt 0:00:18]} Bb4+ {[%emt 0:00:11]} 12. Nc3 {[%emt 0:07:09]} Nge7 {[%emt 0:05:11]} 13. O-O {[%emt 0:07:04]} O-O {[%emt 0:02:19]} 14. Bg5 {[%emt 0:11:59]} Qa5 {[%emt 0:05:11]} 15. h6 {[%emt 0:03:58]} Bxc3 {[%emt 0:04:01]} 16. bxc3 {[%emt 0:05:08]} Qxc3 {[%emt 0:01:20]} 17. Kg2 {[%emt 0:01:03]} Ng6 {[%emt 0:08:32]} 18. Rc1 {[%emt 0:01:37]} Qxf3+ {[%emt 0:09:00]} 19. Qxf3 {[%emt 0:00:07]} Rxf3 {[%emt 0:00:03]} 20. Kxf3 {[%emt 0:00:08]} Ngxe5+ {[%emt 0:00:33]} 21. Kg3 {[%emt 0:01:17]} Nf7 {[%emt 0:02:55]} 22. Bd2 {[%emt 0:01:41]} gxh6 {[%emt 0:02:42]} 23. Bg2 {[%emt 0:00:59]} h5 {[%emt 0:02:48]} 24. gxh5 {[%emt 0:06:16]} Nd6 {[%emt 0:00:20]} 25. Kh2 {[%emt 0:02:51]} Kf7 {[%emt 0:01:05]} 26. Bh3 {[%emt 0:01:55]} Nc4 {[%emt 0:06:18]} 27. Bh6 {[%emt 0:02:57]} Nd4 {[%emt 0:02:06]} 28. Rfd1 {[%emt 0:01:43]} Nf3+ {[%emt 0:00:46]} 29. Kg3 {[%emt 0:00:26]} Nfe5 {[%emt 0:00:20]} 30. f4 {[%emt 0:00:45]} Rg8+ {[%emt 0:07:34]} 31. Kf2 {[%emt 0:00:06]} Ba4 {[%emt 0:02:21]} 32. fxe5 {[%emt 0:00:15]} Bxd1 {[%emt 0:00:05]} 33. Rxd1 {[%emt 0:00:06]} Nxe5 {[%emt 0:00:22]} 34. Bf4 {[%emt 0:00:48]} Nc4 {[%emt 0:01:57]} 35. Rb1 {[%emt 0:00:52]} b6 {[%emt 0:00:18]} 36. Bf1 {[%emt 0:00:25]} e5 {[%emt 0:02:00]} 37. Bxc4 {[%emt 0:00:55]} dxc4 {[%emt 0:00:03]} 38. Bxe5 {[%emt 0:00:47]} Rg5 {[%emt 0:00:04]} 39. Bb8 {[%emt 0:00:43]} Ra5 {[%emt 0:00:54]} 40. Rb2 {[%emt 0:00:00]} Rxh5 {[%emt 0:00:00]} 41. Ke3 {[%emt 0:00:00]} a6 {[%emt 0:00:00]} 42. Rxb6 {[%emt 0:00:00]} Rb5 {[%emt 0:00:00]} 43. Bc7 {[%emt 0:00:00]} Rxb6 {[%emt 0:00:00]} 44. Bxb6 {[%emt 0:00:00]} Ke6 {[%emt 0:00:00]} 45. Kd4 {[%emt 0:00:00]} Kd7 {[%emt 0:00:00]} 46. Kxc4 {[%emt 0:00:00]} 1/2-1/2

[Event "47th GRE-chT 2019"]
[Site "Patra"]
[Date "2019.07.02"]
[Round "1.13"]
[White "Makka, Evanthia"]
[Black "Gikas, Andreas Basilius"]
[Result "0-1"]
[ECO "D02"]
[WhiteElo "2098"]
[BlackElo "2178"]
[Annotator "NA"]
[PlyCount "77"]
[EventDate "2019.07.02"]
[EventCountry "GRE"]
[SourceTitle "playchess.com"]
[Source "ChessBase"]
[SourceQuality "1"]
[TimeControl "5400+30"]

1. d4 {[%emt 0:03:51]} d5 {[%emt 0:00:00]} 2. Nf3 {[%emt 0:00:08]} c6 {[%emt 0:00:00]} 3. e3 {[%emt 0:04:58]} Bf5 {[%emt 0:00:50]} 4. Be2 {[%emt 0:10:08]} e6 {[%emt 0:02:02]} 5. Nbd2 {[%emt 0:09:32]} Nd7 {[%emt 0:02:07]} 6. b3 {[%emt 0:01:37]} h6 {[%emt 0:01:39]} 7. Bb2 {[%emt 0:01:39]} Ngf6 {[%emt 0:00:17]} 8. c4 {[%emt 0:07:11]} Be7 {[%emt 0:06:42]} 9. O-O {[%emt 0:01:15]} O-O {[%emt 0:00:16]} 10. Ne1 {[%emt 0:02:28]} a5 {[%emt 0:04:00]} 11. Nd3 {[%emt 0:02:44]} Re8 {[%emt 0:03:53]} 12. f3 {[%emt 0:03:32]} Bh7 {[%emt 0:02:01]} 13. f4 {[%emt 0:08:32]} Ne4 {[%emt 0:01:58]} 14. Nxe4 {[%emt 0:03:12]} Bxe4 {[%emt 0:00:17]} 15. Nf2 {[%emt 0:06:02]} Bh7 {[%emt 0:08:44]} 16. Bd3 {[%emt 0:01:26]} Bxd3 {[%emt 0:01:26]} 17. Qxd3 {[%emt 0:00:11]} Nf6 {[%emt 0:04:13]} 18. e4 {[%emt 0:01:31]} dxe4 {[%emt 0:08:10]} 19. Nxe4 {[%emt 0:00:07]} Nxe4 {[%emt 0:08:23]} 20. Qxe4 {[%emt 0:00:08]} Bf6 {[%emt 0:00:05]} 21. Rad1 {[%emt 0:02:28]} Qb6 {[%emt 0:01:46]} 22. Ba3 {[%emt 0:04:08]} a4 {[%emt 0:05:48]} 23. Bc5 {[%emt 0:03:09]} Qc7 {[%emt 0:01:42]} 24. Qf3 {[%emt 0:03:06]} Red8 {[%emt 0:01:52]} 25. Qf2 {[%emt 0:02:18]} b6 {[%emt 0:05:09]} 26. Bb4 {[%emt 0:02:12]} Qd7 {[%emt 0:00:55]} 27. Kh1 {[%emt 0:10:49]} Bxd4 {[%emt 0:03:01]} 28. Qg3 {[%emt 0:03:41]} c5 {[%emt 0:04:26]} 29. Bc3 {[%emt 0:01:23]} axb3 {[%emt 0:02:00]} 30. axb3 {[%emt 0:00:59]} Qc6 {[%emt 0:04:19]} 31. Bxd4 {[%emt 0:00:20]} Rxd4 {[%emt 0:00:36]} 32. Rxd4 {[%emt 0:00:24]} cxd4 {[%emt 0:00:03]} 33. h3 {[%emt 0:00:13]} Ra2 {[%emt 0:01:37]} 34. Rd1 {[%emt 0:00:53]} Qe4 {[%emt 0:01:42]} 35. b4 {[%emt 0:00:43]} Rc2 {[%emt 0:00:57]} 36. c5 {[%emt 0:00:28]} bxc5 {[%emt 0:00:50]} 37. bxc5 {[%emt 0:00:09]} Rxc5 {[%emt 0:04:03]} 38. Re1 {[%emt 0:00:52]} Qc6 {[%emt 0:02:06]} 39. Kh2 0-1

[Event "47th GRE-chT 2019"]
[Site "Patra"]
[Date "2019.07.02"]
[Round "1.14"]
[White "Kalogeris, Ioannis"]
[Black "Tsekouras, Theodoros"]
[Result "1-0"]
[ECO "B91"]
[WhiteElo "2376"]
[BlackElo "2196"]
[Annotator "ChessBase"]
[PlyCount "100"]
[EventDate "2019.07.02"]
[EventCountry "GRE"]
[SourceTitle "playchess.com"]
[Source "ChessBase"]
[SourceQuality "1"]
[TimeControl "5400+30"]

1. e4 {[%emt 0:00:01]} c5 {[%emt 0:01:52]} 2. Nf3 {[%emt 0:00:40]} d6 {[%emt 0:00:08]} 3. d4 {[%emt 0:00:06]} cxd4 {[%emt 0:00:06]} 4. Nxd4 {[%emt 0:00:20]} Nf6 {[%emt 0:00:06]} 5. Nc3 {[%emt 0:00:11]} a6 {[%emt 0:00:18]} 6. g3 {[%emt 0:01:11]} e5 {[%emt 0:00:37]} 7. Nde2 {[%emt 0:03:24]} Be7 {[%emt 0:00:23]} 8. Bg2 {[%emt 0:03:20]} Be6 {[%emt 0:07:31]} 9. h3 {[%emt 0:04:25]} O-O {[%emt 0:12:12]} 10. a4 {[%emt 0:11:37]} Nc6 {[%emt 0:01:24]} 11. Nd5 {[%emt 0:03:12]} Rc8 {[%emt 0:09:25]} 12. Be3 {[%emt 0:08:43]} Bxd5 {[%emt 0:00:55]} 13. exd5 {[%emt 0:00:03]} Nb8 {[%emt 0:12:46]} 14. a5 {[%emt 0:01:28]} Nbd7 {[%emt 0:08:12]} 15. b3 {[%emt 0:08:18]} Ne8 {[%emt 0:06:37]} 16. c4 {[%emt 0:04:24]} Bg5 {[%emt 0:04:39]} 17. f4 {[%emt 0:01:28]} exf4 {[%emt 0:02:34]} 18. Nxf4 {[%emt 0:08:11]} Qe7 {[%emt 0:03:30]} 19. Kf2 {[%emt 0:03:37]} Nef6 {[%emt 0:00:45]} 20. Re1 {[%emt 0:09:34]} Rfe8 {[%emt 0:11:27]} 21. h4 {[%emt 0:03:43]} Bh6 {[%emt 0:00:57]} 22. Bh3 {[%emt 0:04:25]} Rcd8 {[%emt 0:09:14]} 23. Qc2 {[%emt 0:04:28]} Ne5 {[%emt 0:00:31]} 24. Kg2 {[%emt 0:06:55]} Nfd7 {[%emt 0:01:52]} 25. Bf5 {[%emt 0:00:53]} g6 {[%emt 0:01:02]} 26. Nxg6 {[%emt 0:03:48]} hxg6 {[%emt 0:00:20]} 27. Bxd7 {[%emt 0:04:03]} Qxd7 {[%emt 0:00:07]} 28. Bxh6 {[%emt 0:00:04]} Qg4 {[%emt 0:02:48]} 29. Qc3 {[%emt 0:01:12]} Kh7 {[%emt 0:00:21]} 30. Bg5 {[%emt 0:00:11]} Rc8 {[%emt 0:01:26]} 31. Bf4 {[%emt 0:01:02]} Qf5 {[%emt 0:00:16]} 32. Bxe5 {[%emt 0:00:24]} Rxe5 {[%emt 0:00:20]} 33. Rxe5 {[%emt 0:00:08]} dxe5 {[%emt 0:01:00]} 34. Rf1 {[%emt 0:00:54]} Qe4+ {[%emt 0:00:01]} 35. Qf3 {[%emt 0:00:14]} Qxf3+ {[%emt 0:00:21]} 36. Kxf3 {[%emt 0:00:32]} f5 {[%emt 0:00:24]} 37. Re1 {[%emt 0:00:28]} Re8 {[%emt 0:01:05]} 38. c5 {[%emt 0:00:10]} Kg7 {[%emt 0:00:18]} 39. Rc1 {[%emt 0:01:04]} Kf7 {[%emt 0:00:00]} 40. c6 {[%emt 0:00:00]} bxc6 {[%emt 0:00:00]} 41. dxc6 {[%emt 0:00:00]} Ke6 {[%emt 0:00:00]} 42. g4 {[%emt 0:00:00]} Kd5 {[%emt 0:00:00]} 43. c7 {[%emt 0:00:00]} Rc8 {[%emt 0:00:00]} 44. gxf5 {[%emt 0:00:00]} gxf5 {[%emt 0:00:00]} 45. Rc4 {[%emt 0:00:00]} Kd6 {[%emt 0:00:00]} 46. h5 {[%emt 0:00:00]} Ke6 {[%emt 0:00:00]} 47. h6 {[%emt 0:00:00]} Kf7 {[%emt 0:00:00]} 48. Rc6 {[%emt 0:00:00]} Kg8 {[%emt 0:00:00]} 49. b4 {[%emt 0:00:00]} Kh7 {[%emt 0:00:00]} 50. b5 {[%emt 0:00:00]} Rb8 {[%emt 0:00:06] Ke4} 1-0

[Event "47th GRE-chT 2019"]
[Site "Patra"]
[Date "2019.07.02"]
[Round "1.14"]
[White "Zervos, Lazaros"]
[Black "Kymionis, Konstantinos"]
[Result "1-0"]
[ECO "E11"]
[WhiteElo "2055"]
[BlackElo "2091"]
[Annotator "NA"]
[PlyCount "77"]
[EventDate "2019.07.02"]
[EventCountry "GRE"]
[SourceTitle "playchess.com"]
[Source "ChessBase"]
[SourceQuality "1"]
[TimeControl "5400+30"]

1. d4 {[%emt 0:04:36]} Nf6 {[%emt 0:00:00]} 2. Nf3 {[%emt 0:01:04]} e6 {[%emt 0:02:54]} 3. c4 {[%emt 0:02:37]} Bb4+ {[%emt 0:00:58]} 4. Nbd2 {[%emt 0:07:26]} b6 {[%emt 0:00:21]} 5. e3 {[%emt 0:05:07]} Bb7 {[%emt 0:01:02]} 6. Bd3 {[%emt 0:02:55]} Ne4 {[%emt 0:11:10]} 7. O-O {[%emt 0:06:05]} f5 {[%emt 0:05:23]} 8. Qc2 {[%emt 0:13:45]} Nxd2 {[%emt 0:05:38]} 9. Nxd2 {[%emt 0:00:54]} Qh4 {[%emt 0:02:18]} 10. d5 {[%emt 0:20:48]} Bd6 {[%emt 0:25:20]} 11. f4 {[%emt 0:09:31]} O-O {[%emt 0:06:30]} 12. Nf3 {[%emt 0:03:06]} Qh5 {[%emt 0:02:13]} 13. Nd4 {[%emt 0:10:57]} Qf7 14. Bd2 {[%emt 0:02:11]} Na6 {[%emt 0:01:25]} 15. Nb5 {[%emt 0:03:18]} exd5 {[%emt 0:01:07]} 16. cxd5 {[%emt 0:02:16]} Nc5 {[%emt 0:00:25]} 17. Nc3 {[%emt 0:00:40]} Kh8 {[%emt 0:03:27]} 18. Bc4 {[%emt 0:00:47]} Rae8 {[%emt 0:03:53]} 19. Rad1 {[%emt 0:00:37]} a6 {[%emt 0:01:30]} 20. a3 {[%emt 0:00:44]} Re7 {[%emt 0:01:36]} 21. Rf3 {[%emt 0:00:33]} Rfe8 {[%emt 0:00:54]} 22. Rg3 {[%emt 0:00:29]} b5 {[%emt 0:13:48]} 23. Ba2 {[%emt 0:00:06]} Qf8 24. b4 {[%emt 0:00:22]} Ne4 {[%emt 0:02:49]} 25. Nxe4 {[%emt 0:00:05]} Rxe4 {[%emt 0:00:10]} 26. Bc3 {[%emt 0:00:55]} R8e7 {[%emt 0:01:10]} 27. Qd2 {[%emt 0:00:37]} Rf7 {[%emt 0:02:42]} 28. Bd4 {[%emt 0:00:54]} Qe8 {[%emt 0:02:56]} 29. Qc3 {[%emt 0:00:21]} Ree7 {[%emt 0:01:19]} 30. Rf1 {[%emt 0:00:35]} Kg8 {[%emt 0:00:48]} 31. Rff3 {[%emt 0:00:33]} g6 {[%emt 0:01:13]} 32. h4 {[%emt 0:00:23]} Re4 {[%emt 0:00:19]} 33. h5 {[%emt 0:00:11]} Rfe7 {[%emt 0:00:07]} 34. hxg6 {[%emt 0:00:22]} hxg6 {[%emt 0:00:04]} 35. Rh3 {[%emt 0:00:11]} Rxd4 {[%emt 0:00:27]} 36. Qxd4 {[%emt 0:00:06]} Rg7 {[%emt 0:00:04]} 37. Rh6 {[%emt 0:00:47]} Kf7 {[%emt 0:00:29]} 38. Rfh3 {[%emt 0:00:23]} Qg8 {[%emt 0:00:22]} 39. Rh8 {[%emt 0:00:09]} 1-0

[Event "47th GRE-chT 2019"]
[Site "Patra"]
[Date "2019.07.02"]
[Round "1.15"]
[White "Makropoulou, Marina"]
[Black "Zawadzka, Jolanta"]
[Result "0-1"]
[ECO "C66"]
[WhiteElo "2182"]
[BlackElo "2422"]
[Annotator "RC"]
[PlyCount "136"]
[EventDate "2019.07.02"]
[EventCountry "GRE"]
[SourceTitle "playchess.com"]
[Source "ChessBase"]
[SourceQuality "1"]
[TimeControl "5400+30"]

1. e4 {[%emt 0:00:00]} e5 {[%emt 0:00:00]} 2. Nf3 {[%emt 0:00:06]} Nc6 {[%emt 0:00:00]} 3. Bb5 {[%emt 0:00:20]} Nf6 {[%emt 0:00:32]} 4. d3 {[%emt 0:00:47]} d6 {[%emt 0:00:27]} 5. c3 {[%emt 0:06:12]} g6 {[%emt 0:00:52]} 6. O-O {[%emt 0:07:16]} Bg7 {[%emt 0:01:12]} 7. a4 {[%emt 0:01:14]} O-O {[%emt 0:02:11]} 8. a5 {[%emt 0:01:56]} Nxa5 {[%emt 0:10:12]} 9. Rxa5 {[%emt 0:17:42]} c6 {[%emt 0:00:13]} 10. Qa4 {[%emt 0:02:25]} cxb5 {[%emt 0:04:15]} 11. Qxb5 {[%emt 0:00:11]} a6 {[%emt 0:06:28]} 12. Qb4 {[%emt 0:00:13]} Bg4 {[%emt 0:13:48]} 13. Nbd2 {[%emt 0:02:23]} Nh5 {[%emt 0:02:25]} 14. h3 {[%emt 0:02:20]} Be6 {[%emt 0:00:55]} 15. Nc4 {[%emt 0:02:09]} b5 {[%emt 0:15:35]} 16. Nxd6 {[%emt 0:02:45]} Qd7 {[%emt 0:02:13]} 17. d4 {[%emt 0:05:25]} exd4 {[%emt 0:02:47]} 18. cxd4 {[%emt 0:01:51]} Rfd8 {[%emt 0:01:06]} 19. e5 {[%emt 0:03:14]} Bf8 {[%emt 0:00:55]} 20. Be3 {[%emt 0:04:41]} Bd5 {[%emt 0:07:24]} 21. Nd2 {[%emt 0:00:23]} Bxd6 {[%emt 0:02:20]} 22. exd6 {[%emt 0:00:06]} Qc6 {[%emt 0:02:16]} 23. Qc5 {[%emt 0:09:02]} Bxg2 {[%emt 0:06:31]} 24. Rfa1 {[%emt 0:03:36]} Qb7 {[%emt 0:01:57]} 25. Qc7 {[%emt 0:18:23]} Qd5 {[%emt 0:05:21]} 26. Rxa6 {[%emt 0:03:03]} Bxh3 {[%emt 0:00:48]} 27. f3 {[%emt 0:00:18]} Rac8 {[%emt 0:00:44]} 28. Qe7 {[%emt 0:00:11]} Be6 {[%emt 0:06:38]} 29. Qg5 {[%emt 0:01:42]} Rxd6 {[%emt 0:01:27]} 30. Qxd5 {[%emt 0:01:15]} Rxd5 {[%emt 0:00:05]} 31. Ne4 {[%emt 0:00:56]} Kg7 {[%emt 0:02:30]} 32. Rb6 {[%emt 0:02:12]} Rc2 {[%emt 0:00:48]} 33. Nd6 {[%emt 0:01:17]} Bh3 {[%emt 0:00:47]} 34. Ne4 {[%emt 0:00:53]} Rg2+ {[%emt 0:00:31]} 35. Kh1 {[%emt 0:00:08]} Rxb2 {[%emt 0:00:17]} 36. Nf2 {[%emt 0:00:43]} Bf5 {[%emt 0:00:24]} 37. Rc1 {[%emt 0:00:38]} Be6 {[%emt 0:00:52]} 38. Rc7 {[%emt 0:00:21]} Rd7 {[%emt 0:00:31]} 39. Rxd7 {[%emt 0:00:40]} Bxd7 {[%emt 0:00:03]} 40. Ne4 {[%emt 0:00:00]} Bf5 {[%emt 0:00:00]} 41. Nd6 {[%emt 0:00:00]} Bh3 {[%emt 0:00:00]} 42. Ne4 {[%emt 0:00:00]} Bg2+ {[%emt 0:00:00]} 43. Kg1 {[%emt 0:00:00]} Bxf3 {[%emt 0:00:00]} 44. Nd2 {[%emt 0:00:00]} Bg4 {[%emt 0:00:00]} 45. d5 {[%emt 0:00:00]} Rb4 {[%emt 0:00:00]} 46. Bc5 {[%emt 0:00:00]} Rf4 {[%emt 0:00:00]} 47. Rxb5 {[%emt 0:00:00]} Nf6 {[%emt 0:00:00]} 48. Be3 {[%emt 0:00:00]} Rf5 {[%emt 0:00:00]} 49. Bd4 {[%emt 0:00:00]} Kh6 {[%emt 0:00:00]} 50. Bxf6 {[%emt 0:00:00]} Rxf6 {[%emt 0:00:00]} 51. Rb4 {[%emt 0:00:23]} Bf5 {[%emt 0:00:00]} 52. Rd4 {[%emt 0:01:09]} Rd6 {[%emt 0:00:00]} 53. Nc4 {[%emt 0:00:10]} Rd8 {[%emt 0:00:00]} 54. Ne5 {[%emt 0:02:09]} Kg7 {[%emt 0:00:00]} 55. d6 {[%emt 0:00:47]} Kf6 {[%emt 0:00:13]} 56. Nc6 {[%emt 0:01:23]} Rc8 {[%emt 0:00:56]} 57. Nb4 {[%emt 0:00:03]} Bd7 {[%emt 0:02:48]} 58. Kf2 {[%emt 0:00:26]} Ke5 {[%emt 0:01:23]} 59. Rd5+ {[%emt 0:00:42]} Ke6 {[%emt 0:00:20]} 60. Rd2 {[%emt 0:00:20]} h5 {[%emt 0:01:19]} 61. Na6 {[%emt 0:00:20]} Rc6 {[%emt 0:01:00]} 62. Nc7+ {[%emt 0:00:09]} Ke5 {[%emt 0:00:14]} 63. Rd5+ {[%emt 0:00:10]} Ke4 {[%emt 0:00:34]} 64. Rd2 {[%emt 0:00:25]} h4 {[%emt 0:01:15]} 65. Re2+ {[%emt 0:01:03]} Kf5 {[%emt 0:01:03]} 66. Re7 {[%emt 0:00:18]} Rxd6 {[%emt 0:00:29]} 67. Rxf7+ {[%emt 0:00:23]} Kg4 {[%emt 0:00:17]} 68. Ke3 {[%emt 0:01:10]} g5 {[%emt 0:01:07] Kd4} 0-1

[Event "47th GRE-chT 2019"]
[Site "Patra"]
[Date "2019.07.02"]
[Round "1.15"]
[White "Makka, Ioulia"]
[Black "Kiolbasa, Oliwia"]
[Result "1/2-1/2"]
[ECO "C50"]
[WhiteElo "2026"]
[BlackElo "2239"]
[Annotator "RC"]
[PlyCount "106"]
[EventDate "2019.07.02"]
[EventCountry "GRE"]
[SourceTitle "playchess.com"]
[Source "ChessBase"]
[SourceQuality "1"]
[TimeControl "5400+30"]

1. e4 {[%emt 0:00:00]} e5 {[%emt 0:00:00]} 2. Nf3 {[%emt 0:00:02]} Nc6 {[%emt 0:00:00]} 3. Bc4 {[%emt 0:00:14]} Bc5 {[%emt 0:00:13]} 4. O-O {[%emt 0:02:26]} Nf6 {[%emt 0:00:22]} 5. d3 {[%emt 0:02:01]} O-O {[%emt 0:00:14]} 6. a4 {[%emt 0:04:31]} d5 {[%emt 0:08:37]} 7. exd5 {[%emt 0:02:47]} Nxd5 {[%emt 0:00:07]} 8. Ng5 {[%emt 0:16:44]} h6 {[%emt 0:12:33]} 9. Ne4 {[%emt 0:02:21]} Be7 {[%emt 0:00:09]} 10. Nbc3 {[%emt 0:10:54]} Nb6 {[%emt 0:15:46]} 11. Ba2 {[%emt 0:02:09]} Nd4 {[%emt 0:10:47]} 12. a5 {[%emt 0:02:13]} Nd7 {[%emt 0:00:06]} 13. Nd5 {[%emt 0:01:57]} Nc5 {[%emt 0:08:51]} 14. Nxe7+ {[%emt 0:16:09]} Qxe7 {[%emt 0:00:09]} 15. Nxc5 {[%emt 0:04:09]} Qxc5 {[%emt 0:00:07]} 16. c3 {[%emt 0:00:59]} Nf5 {[%emt 0:02:05]} 17. Qf3 {[%emt 0:05:12]} Qd6 {[%emt 0:10:46]} 18. a6 {[%emt 0:03:41]} Rb8 {[%emt 0:01:07]} 19. axb7 {[%emt 0:01:03]} Bd7 {[%emt 0:00:10]} 20. Qd5 {[%emt 0:03:56]} Bc6 {[%emt 0:08:22]} 21. Qxd6 {[%emt 0:00:49]} Nxd6 {[%emt 0:02:09]} 22. Be3 {[%emt 0:01:57]} Rxb7 {[%emt 0:00:06]} 23. b4 {[%emt 0:00:41]} Rd8 {[%emt 0:00:37]} 24. Bb1 {[%emt 0:04:55]} Nb5 {[%emt 0:09:43]} 25. Rc1 {[%emt 0:00:35]} e4 {[%emt 0:00:04]} 26. d4 {[%emt 0:01:01]} Nd6 {[%emt 0:03:37]} 27. Ba2 {[%emt 0:01:51]} Bb5 {[%emt 0:01:12]} 28. c4 {[%emt 0:01:28]} Be8 {[%emt 0:00:09]} 29. b5 {[%emt 0:02:34]} Nf5 {[%emt 0:01:20]} 30. d5 {[%emt 0:02:05]} Nxe3 {[%emt 0:01:28]} 31. fxe3 {[%emt 0:00:02]} a6 {[%emt 0:00:44]} 32. bxa6 {[%emt 0:00:20]} Ra7 {[%emt 0:00:02]} 33. Bb1 {[%emt 0:00:51]} f5 {[%emt 0:00:24]} 34. Rf1 {[%emt 0:00:37]} Bg6 {[%emt 0:01:04]} 35. Rf2 {[%emt 0:01:01]} Rd6 {[%emt 0:00:23]} 36. Rfa2 {[%emt 0:00:26]} c6 {[%emt 0:00:49]} 37. dxc6 {[%emt 0:01:33]} Rxc6 {[%emt 0:00:04]} 38. Bc2 {[%emt 0:01:01]} Bf7 {[%emt 0:00:51]} 39. Bb3 {[%emt 0:01:08]} Rb6 {[%emt 0:01:17]} 40. Ra3 {[%emt 0:00:00]} g6 {[%emt 0:00:00]} 41. Kf2 {[%emt 0:00:00]} Kf8 {[%emt 0:00:00]} 42. h4 {[%emt 0:00:00]} Be6 {[%emt 0:00:00]} 43. Kg3 {[%emt 0:00:00]} Ke7 {[%emt 0:00:00]} 44. Kf2 {[%emt 0:00:00]} Bc8 {[%emt 0:00:00]} 45. Ke1 {[%emt 0:00:00]} Kd6 {[%emt 0:00:00]} 46. c5+ {[%emt 0:00:00]} Kxc5 {[%emt 0:00:00]} 47. Rc1+ {[%emt 0:00:00]} Kb4 {[%emt 0:00:00]} 48. Raa1 {[%emt 0:00:00]} Bd7 {[%emt 0:03:22]} 49. Bd1 {[%emt 0:02:21]} Raxa6 {[%emt 0:01:33]} 50. Rab1+ {[%emt 0:01:42]} Ka3 {[%emt 0:01:11]} 51. Ra1+ {[%emt 0:00:35]} Kb4 {[%emt 0:00:12]} 52. Rab1+ {[%emt 0:00:24]} Ka3 {[%emt 0:00:06]} 53. Ra1+ {[%emt 0:00:32]} Kb4 {[%emt 0:00:05]} 1/2-1/2